[Event "Romanian Women Championship 2024"]
[Site "Eforie Nord"]
[Date "2024.02.26"]
[Round "4.3"]
[White "Trifoi, Mihaela-Ioana"]
[Black "Lehaci, Miruna-Daria"]
[Result "0-1"]
[ECO "C02"]
[WhiteElo "2003"]
[BlackElo "2227"]
[Annotator "RC"]
[PlyCount "26"]
[EventDate "2024.02.24"]
[EventType "swiss"]
[EventCountry "ROU"]
[SourceTitle "playchess.com"]
[Source "ChessBase"]
[SourceQuality "1"]
[TimeControl "40/5400+30:900+30"]

1. e4 {[%emt 0:00:04]} e6 {[%emt 0:00:04]} 2. d4 {[%emt 0:00:09]} d5 {[%emt 0:00:04]} 3. e5 {[%emt 0:00:07]} c5 {[%emt 0:00:03]} 4. c3 {[%emt 0:00:06]} Nc6 {[%emt 0:00:05]} 5. Nf3 {[%emt 0:00:05]} Qb6 {[%emt 0:00:04]} 6. a3 {[%emt 0:00:19]} f6 {[%emt 0:00:06]} 7. Bd3 {[%emt 0:01:24]} fxe5 {[%emt 0:00:06]} 8. Nxe5 {[%emt 0:00:51]} Nf6 {[%emt 0:06:13]} 9. O-O {[%emt 0:19:26]} Be7 {[%emt 0:02:31]} 10. Bg5 {[%emt 0:24:26]} cxd4 {[%emt 0:14:12]} 11. Bxf6 {[%emt 0:02:46]} Bxf6 {[%emt 0:00:45]} 12. Qh5+ {[%emt 0:01:17]} g6 {[%emt 0:00:54]} 13. Bxg6+ {[%emt 0:00:49]} Ke7 {[%emt 0:00:22]} 0-1

[Event "Romanian Women Championship 2024"]
[Site "Eforie Nord"]
[Date "2024.02.26"]
[Round "4.4"]
[White "Obada, Ema"]
[Black "Stanciu, Andreea-Briana"]
[Result "1/2-1/2"]
[ECO "B13"]
[WhiteElo "1969"]
[BlackElo "1960"]
[Annotator "NA RC"]
[PlyCount "46"]
[EventDate "2024.02.24"]
[EventType "swiss"]
[EventCountry "ROU"]
[SourceTitle "playchess.com"]
[Source "ChessBase"]
[SourceQuality "1"]
[TimeControl "40/5400+30:900+30"]

1. e4 {[%emt 0:00:03]} c6 {[%emt 0:00:13]} 2. d4 {[%emt 0:00:05]} d5 {[%emt 0:00:04]} 3. exd5 {[%emt 0:00:03]} cxd5 {[%emt 0:00:04]} 4. Bd3 {[%emt 0:00:06]} Nc6 {[%emt 0:00:04]} 5. c3 {[%emt 0:00:08]} Qc7 {[%emt 0:00:19]} 6. Na3 {[%emt 0:00:07]} a6 {[%emt 0:00:56]} 7. Nc2 {[%emt 0:00:06]} Nf6 {[%emt 0:00:29]} 8. h3 {[%emt 0:00:07]} e5 {[%emt 0:00:50]} 9. dxe5 {[%emt 0:01:20]} Nxe5 {[%emt 0:00:05]} 10. Nf3 {[%emt 0:07:03]} Nxd3+ {[%emt 0:02:32]} 11. Qxd3 {[%emt 0:00:06]} Be6 {[%emt 0:01:05]} 12. O-O {[%emt 0:02:23]} Bd6 {[%emt 0:03:12]} 13. Re1 {[%emt 0:04:39]} O-O {[%emt 0:06:47]} 14. Be3 {[%emt 0:03:09]} Ne4 {[%emt 0:02:13]} 15. Ncd4 {[%emt 0:07:12]} h6 {[%emt 0:09:25]} 16. Nd2 {[%emt 0:14:24]} Nc5 {[%emt 0:05:09]} 17. Qc2 {[%emt 0:01:30]} Rfe8 {[%emt 0:13:55]} 18. Nf5 {[%emt 0:01:49]} Bf8 {[%emt 0:02:33]} 19. Bd4 {[%emt 0:00:54]} Nd7 {[%emt 0:07:59]} 20. Re3 {[%emt 0:03:01]} Bxf5 {[%emt 0:07:50]} 21. Qxf5 {[%emt 0:00:06]} Rxe3 {[%emt 0:00:06]} 22. Bxe3 {[%emt 0:00:18]} Qc6 {[%emt 0:00:40]} 23. Nf3 {[%emt 0:08:48]} g6 {[%emt 0:06:05]} 1/2-1/2

[Event "Romanian Women Championship 2024"]
[Site "Eforie Nord"]
[Date "2024.02.26"]
[Round "4.5"]
[White "Peptan, Corina-Isabela"]
[Black "Hoanca, Alexia-Ioana"]
[Result "1-0"]
[ECO "E14"]
[WhiteElo "2314"]
[BlackElo "1748"]
[Annotator "TA"]
[PlyCount "117"]
[EventDate "2024.02.24"]
[EventType "swiss"]
[EventCountry "ROU"]
[SourceTitle "playchess.com"]
[Source "ChessBase"]
[SourceQuality "1"]
[TimeControl "40/5400+30:900+30"]

{[%evp 15,117,-9,-1,-7,-5,-11,-7,-8,-2,-10,-12,-10,0,-17,-2,-35,-38,-42,0,0,0,-61,0,-14,0,0,111,111,102,99,91,100,110,112,116,120,132,110,137,140,130,132,124,115,185,194,219,220,261,256,314,318,429,206,204,143,200,143,163,109,113,110,135,121,129,0,0,11,94,98,396,411,390,427,685,695,685,489,455,414,919,921,1652,1497,1057,1051,1847,1679,5439,1824,12843,12804,12797,12794,8009,6097,29968,11350,29968,29969,29984,29985,29984,29985]} 1. c4 {[%emt 0:00:05]} e6 {[%emt 0:00:33]} 2. Nf3 {[%emt 0:00:15]} d5 {[%emt 0:00:09]} 3. e3 {[%emt 0:00:06]} Nf6 {[%emt 0:00:25]} 4. Nc3 {[%emt 0:01:48]} Bd6 {[%emt 0:03:09]} 5. d4 {[%emt 0:02:10]} O-O {[%emt 0:03:07]} 6. Bd3 {[%emt 0:06:05]} b6 {[%emt 0:04:00]} 7. cxd5 {[%emt 0:08:52]} exd5 {[%emt 0:00:27]} 8. O-O {[%emt 0:00:06]} Bb7 {[%emt 0:04:40]} 9. b3 {[%emt 0:09:33]} a6 {[%emt 0:05:59]} 10. Bb2 {[%emt 0:00:18]} Re8 {[%emt 0:01:11]} 11. Ne2 {[%emt 0:02:09] Die Stellung ist ausgeglichen.} Nbd7 {[%emt 0:08:34]} 12. Ng3 {[%emt 0:01:28]} g6 {[%emt 0:00:56]} 13. Re1 {[%emt 0:08:02]} Qe7 {[%emt 0:06:21]} 14. Nd2 {[%emt 0:02:36]} Ne4 {[%emt 0:04:26]} 15. Bxe4 {[%emt 0:04:51]} dxe4 {[%emt 0:00:11]} 16. Nc4 {[%emt 0:00:04]} Bb4 {[%emt 0:05:40]} 17. Re2 {[%emt 0:00:41]} b5 {[%emt 0:01:37]} 18. Ne5 {[%emt 0:14:10]} (18. a3 $11 Bd6 19. Nxd6 Qxd6 20. Rc2) 18... Bd5 {[%emt 0:04:53]} (18... Nxe5 $15 19. dxe5 Red8) 19. Qc2 {[%emt 0:09:28]} Qd6 {[%emt 0:12:45]} 20. Rc1 {[%emt 0:04:33]} (20. a3 $5 Ba5 $8 (20... Nxe5 $2 21. dxe5 Qe7 22. axb4 $18) 21. Rc1 $11 (21. Nxe4 Bxe4 22. Qxe4 f6 $17)) 20... Rac8 {[%emt 0:16:41]} (20... f5 $11) 21. a3 {[%emt 0:07:16]} Ba5 {[%emt 0:00:47]} 22. b4 $36 {[%emt 0:00:08][%mdl 2048] Weiss bestimmt, wo es lang geht.} Bb6 {[%emt 0:00:44]} 23. Nxe4 {[%emt 0:01:09]} Bxe4 {[%emt 0:02:08]} 24. Qxe4 {[%emt 0:00:02]} Nxe5 {[%emt 0:01:18]} 25. dxe5 {[%emt 0:00:02]} Qe7 {[%emt 0:00:11]} 26. Qc6 {[%emt 0:11:52]} Red8 {[%emt 0:01:23]} 27. h3 {[%emt 0:00:33] Weiß steht aktiver.} Rd3 {[%emt 0:03:40]} 28. Kh2 {[%emt 0:00:09]} Rcd8 {[%emt 0:00:27]} 29. Rec2 {[%emt 0:02:11]} h5 {[%emt 0:02:56]} (29... Rb3 $16 {kämpft weiter.}) 30. Qe4 $18 {[%emt 0:00:56]} Kh7 {[%emt 0:00:58]} 31. Rc6 {[%emt 0:00:46] [#] Droht Rf6 und aus.} Rd2 {[%emt 0:02:33]} 32. R1c2 {[%emt 0:00:09]} Rxc2 {[%emt 0:00:43]} 33. Qxc2 {[%emt 0:00:28] Und jetzt Rf6 wäre schön.} ({Finger weg von} 33. Rxc2 $6 Kg8 34. Qf3 Qe6 $18) 33... Qd7 {[%emt 0:02:27]} 34. Rf6 {[%emt 0:01:03]} (34. e6 $142 Qe7 35. Qc3) 34... Re8 {[%emt 0:00:45]} 35. Qe4 {[%emt 0:01:43] Und Qf3 würde nun gewinnen.} Re6 {[%emt 0:00:23]} 36. Qf4 {[%emt 0:01:28]} Kg8 {[%emt 0:00:12]} 37. Qf3 {[%emt 0:00:32]} (37. Bd4 $18) 37... c6 $16 {[%emt 0:00:49]} 38. Qe4 {[%emt 0:00:54]} Bc7 {[%emt 0:00:37]} 39. f4 {[%emt 0:00:13]} Qd5 {[%emt 0:00:28]} 40. Qc2 {[%emt 0:00:00]} ({Vorzuziehen ist} 40. Qxd5 $16 {Beabsichtigt Qd7 und Matt.} cxd5 41. Rxe6 fxe6 42. Kg3) 40... Rxf6 $11 {[%emt 0:00:00]} 41. exf6 {[%emt 0:00:54][%mdl 4096] Endspiel. KQB-KQB} Bb6 {[%emt 0:00:42] Verhindert Qc5} (41... g5 $11) 42. e4 $16 {[%emt 0:03:56]} Qc4 {[%emt 0:01:05][%mdl 8192] Das Aus für Schwarz.} (42... Qe6 $16) 43. Qxc4 $18 {[%emt 0:06:57]} bxc4 {[%emt 0:00:03] KB-KB} 44. Bc3 {[%emt 0:00:05]} h4 {[%emt 0:04:31]} (44... Kf8 $142 45. g4 hxg4 46. hxg4 g5) 45. g3 {[%emt 0:00:22]} Be3 {[%emt 0:00:24]} 46. Kg2 {[%emt 0:00:08]} ({Nicht} 46. gxh4 Bxf4+ 47. Kg2 Bh6 $11) 46... hxg3 {[%emt 0:02:39]} 47. Kxg3 {[%emt 0:00:01]} g5 {[%emt 0:01:42]} (47... c5 $142 48. e5 cxb4 49. axb4 (49. Bxb4 Bd4 $18) 49... Bg1) 48. fxg5 {[%emt 0:01:04]} Bxg5 {[%emt 0:00:13]} 49. Kg4 {[%emt 0:00:02]} Be3 {[%emt 0:00:35]} 50. Kf5 {[%emt 0:02:21]} c5 {[%emt 0:01:28]} 51. Ke5 {[%emt 0:01:45] Schwarz muss nun Kd5 beachten.} Kh7 {[%emt 0:01:42]} 52. Kd5 {[%emt 0:01:16][%csl LRc4,LRc5]} cxb4 {[%emt 0:00:22]} 53. axb4 {[%emt 0:00:01]} Kg6 {[%emt 0:00:38]} 54. Kxc4 {[%emt 0:00:03]} Kg5 {[%emt 0:00:23]} 55. Kd5 {[%emt 0:00:32]} Bb6 {[%emt 0:00:35]} 56. Kc6 {[%emt 0:00:47]} Bd8 {[%emt 0:00:28]} 57. e5 {[%emt 0:00:14][%cal Be4e5,Be5e6][%mdl 32] Weiß setzt Matt.} Kf5 {[%emt 0:00:20]} 58. Kd7 {[%emt 0:00:12]} Bb6 {[%emt 0:00:43] [#]} 59. e6 $1 {[%emt 0:00:10] Gewichteter Fehlerwert: Weiß=0.27 (präzise) /Schwarz=0.64.  Verlustzug:     	---       	Schwarz=1     Fehler:       	Weiß=4     	Schwarz=6     Ungenau:       	Weiß=1     	Schwarz=2     OK:         	Weiß=11    	Schwarz=8     Bester:       	Weiß=2     	Schwarz=4} 1-0

[Event "Romanian Women Championship 2024"]
[Site "Eforie Nord"]
[Date "2024.02.26"]
[Round "4.6"]
[White "Schiopu, Oana-Magdalena"]
[Black "Sava, Ana-Maria"]
[Result "1-0"]
[ECO "B03"]
[WhiteElo "1750"]
[BlackElo "1916"]
[Annotator "NA RC"]
[PlyCount "61"]
[EventDate "2024.02.24"]
[EventType "swiss"]
[EventCountry "ROU"]
[SourceTitle "playchess.com"]
[Source "ChessBase"]
[SourceQuality "1"]
[TimeControl "40/5400+30:900+30"]

1. e4 {[%emt 0:00:03]} Nf6 {[%emt 0:00:08]} 2. e5 {[%emt 0:00:20]} Nd5 {[%emt 0:00:08]} 3. Nf3 {[%emt 0:00:34]} d6 {[%emt 0:00:57]} 4. exd6 {[%emt 0:03:32]} cxd6 {[%emt 0:00:14]} 5. d4 {[%emt 0:01:37]} g6 {[%emt 0:01:35]} 6. Bc4 {[%emt 0:03:17]} Nf6 {[%emt 0:01:11]} 7. O-O {[%emt 0:01:25]} Bg7 {[%emt 0:00:08]} 8. Nc3 {[%emt 0:02:19]} O-O {[%emt 0:01:24]} 9. h3 {[%emt 0:00:33]} a6 {[%emt 0:03:03]} 10. Re1 {[%emt 0:01:27]} b5 {[%emt 0:01:02]} 11. Bb3 {[%emt 0:03:29]} Bb7 {[%emt 0:01:18]} 12. Bg5 {[%emt 0:03:43]} Nbd7 {[%emt 0:01:12]} 13. Qe2 {[%emt 0:08:49]} b4 {[%emt 0:05:18]} 14. Nd1 {[%emt 0:04:37]} Ne4 {[%emt 0:01:35]} 15. d5 {[%emt 0:01:53]} Ndc5 {[%emt 0:02:18]} 16. Bc4 {[%emt 0:02:07]} Bc8 {[%emt 0:07:36]} 17. Rb1 {[%emt 0:09:02]} h6 {[%emt 0:01:03]} 18. Be3 {[%emt 0:00:24]} Ra7 {[%emt 0:02:00]} 19. Nd4 {[%emt 0:01:22]} Bb7 {[%emt 0:08:12]} 20. c3 {[%emt 0:01:13]} bxc3 {[%emt 0:04:47]} 21. Nxc3 {[%emt 0:01:23]} Nxc3 {[%emt 0:07:28]} 22. bxc3 {[%emt 0:00:06]} Qa8 {[%emt 0:01:51]} 23. Red1 {[%emt 0:07:26]} f5 {[%emt 0:17:03]} 24. Ne6 {[%emt 0:00:33]} Nxe6 {[%emt 0:01:08]} 25. Bxa7 {[%emt 0:00:36]} Nf4 {[%emt 0:03:09]} 26. Qxe7 {[%emt 0:00:27]} Rf7 {[%emt 0:04:30]} 27. Qxd6 {[%emt 0:00:43]} Qxa7 {[%emt 0:03:13]} 28. Qxf4 {[%emt 0:00:08]} g5 {[%emt 0:01:02]} 29. Qe3 {[%emt 0:01:24]} Qxe3 {[%emt 0:01:29]} 30. fxe3 {[%emt 0:00:05]} Rd7 {[%emt 0:00:14]} 31. d6+ {[%emt 0:00:29]} 1-0

[Event "Romanian Women Championship 2024"]
[Site "Eforie Nord"]
[Date "2024.02.26"]
[Round "4.7"]
[White "Ardelean, Lorela-Daniela"]
[Black "Vorniceanu, Alina"]
[Result "0-1"]
[ECO "B07"]
[WhiteElo "1802"]
[BlackElo "1476"]
[Annotator "NA RC"]
[PlyCount "96"]
[EventDate "2024.02.24"]
[EventType "swiss"]
[EventCountry "ROU"]
[SourceTitle "playchess.com"]
[Source "ChessBase"]
[SourceQuality "1"]
[TimeControl "40/5400+30:900+30"]

1. e4 {[%emt 0:00:03]} d6 {[%emt 0:00:29]} 2. d4 {[%emt 0:01:17]} Nf6 {[%emt 0:00:06]} 3. Nc3 {[%emt 0:00:23]} g6 {[%emt 0:00:48]} 4. f3 {[%emt 0:00:21]} Bg7 {[%emt 0:00:05]} 5. Be3 {[%emt 0:00:03]} O-O {[%emt 0:01:04]} 6. Qd2 {[%emt 0:00:20]} Nc6 {[%emt 0:02:35]} 7. O-O-O {[%emt 0:00:52]} e5 {[%emt 0:02:37]} 8. d5 {[%emt 0:00:59]} Nd4 {[%emt 0:05:31]} 9. Nge2 {[%emt 0:01:53]} Nxe2+ {[%emt 0:05:09]} 10. Nxe2 {[%emt 0:01:31]} Ne8 {[%emt 0:10:23]} 11. Bh6 {[%emt 0:02:25]} f5 {[%emt 0:02:21]} 12. g3 {[%emt 0:00:36]} fxe4 {[%emt 0:06:30]} 13. fxe4 {[%emt 0:00:10]} Bxh6 {[%emt 0:02:29]} 14. Qxh6 {[%emt 0:00:03]} Nf6 {[%emt 0:00:07]} 15. Qh4 {[%emt 0:06:37]} Ng4 {[%emt 0:01:10]} 16. Qxd8 {[%emt 0:01:44]} Rxd8 {[%emt 0:00:02]} 17. Re1 {[%emt 0:01:14]} Nf2 {[%emt 0:01:42]} 18. Rg1 {[%emt 0:00:07]} Nxe4 {[%emt 0:00:06]} 19. g4 {[%emt 0:03:06]} Nf6 {[%emt 0:05:25]} 20. Nc3 {[%emt 0:03:14]} Bxg4 {[%emt 0:05:17]} 21. Bd3 {[%emt 0:00:44]} Bh5 {[%emt 0:03:54]} 22. h4 {[%emt 0:03:31]} a6 {[%emt 0:03:11]} 23. Rg5 {[%emt 0:00:34]} Rf8 {[%emt 0:01:49]} 24. Reg1 {[%emt 0:00:26]} Kf7 {[%emt 0:00:56]} 25. Bf1 {[%emt 0:04:36]} Bf3 {[%emt 0:05:46]} 26. Bc4 {[%emt 0:01:47]} Ke7 {[%emt 0:02:06]} 27. R1g3 {[%emt 0:03:12]} Bh5 {[%emt 0:02:32]} 28. Rg1 {[%emt 0:03:13]} Nd7 {[%emt 0:00:54]} 29. Bd3 {[%emt 0:03:48]} Nc5 {[%emt 0:00:41]} 30. Rxh5 {[%emt 0:03:45]} Nxd3+ {[%emt 0:00:15]} 31. cxd3 {[%emt 0:00:02]} gxh5 {[%emt 0:00:21]} 32. Rg5 {[%emt 0:00:09]} h6 {[%emt 0:03:12]} 33. Rxh5 {[%emt 0:01:52]} Rh8 {[%emt 0:00:20]} 34. Ne4 {[%emt 0:02:55]} Rag8 {[%emt 0:01:23]} 35. Kd2 {[%emt 0:00:45]} c6 {[%emt 0:00:21]} 36. dxc6 {[%emt 0:01:15]} bxc6 {[%emt 0:00:02]} 37. d4 {[%emt 0:05:01]} exd4 {[%emt 0:03:23]} 38. Kd3 {[%emt 0:00:14]} Rg4 {[%emt 0:03:07]} 39. b4 {[%emt 0:02:35]} Rf8 {[%emt 0:02:13]} 40. Nd2 {[%emt 0:00:00]} Rf6 {[%emt 0:00:00]} 41. a4 {[%emt 0:10:06]} d5 {[%emt 0:02:38]} 42. b5 {[%emt 0:00:48]} axb5 {[%emt 0:00:18]} 43. axb5 {[%emt 0:00:08]} Re6 {[%emt 0:02:38]} 44. bxc6 {[%emt 0:01:39]} Re3+ {[%emt 0:00:13]} 45. Kc2 {[%emt 0:00:47]} Rc3+ {[%emt 0:00:13]} 46. Kd1 {[%emt 0:00:18]} Rg1+ {[%emt 0:01:10]} 47. Ke2 {[%emt 0:00:03]} Rg2+ {[%emt 0:00:46]} 48. Kd1 {[%emt 0:00:26]} Rd3 {[%emt 0:01:03]} 0-1

[Event "Romanian Women Championship 2024"]
[Site "Eforie Nord"]
[Date "2024.02.26"]
[Round "4.8"]
[White "Bira, Andrada-Paraschiva"]
[Black "Sunea, Sara Maria"]
[Result "1/2-1/2"]
[ECO "D34"]
[WhiteElo "1590"]
[BlackElo "1561"]
[Annotator "NA RC"]
[PlyCount "88"]
[EventDate "2024.02.24"]
[EventType "swiss"]
[EventCountry "ROU"]
[SourceTitle "playchess.com"]
[Source "ChessBase"]
[SourceQuality "1"]
[TimeControl "40/5400+30:900+30"]

1. d4 {[%emt 0:00:03]} d5 {[%emt 0:00:37]} 2. Nf3 {[%emt 0:00:39]} e6 {[%emt 0:00:11]} 3. g3 {[%emt 0:00:17]} Nf6 {[%emt 0:00:16]} 4. Bg2 {[%emt 0:00:13]} c5 {[%emt 0:00:15]} 5. O-O {[%emt 0:00:19]} Nc6 {[%emt 0:00:41]} 6. b3 {[%emt 0:02:18]} Be7 {[%emt 0:02:27]} 7. Bb2 {[%emt 0:00:51]} O-O {[%emt 0:01:13]} 8. c4 {[%emt 0:04:04]} Bd7 {[%emt 0:08:26]} 9. cxd5 {[%emt 0:00:47]} exd5 {[%emt 0:00:29]} 10. Nc3 {[%emt 0:00:26]} Be6 {[%emt 0:02:25]} 11. dxc5 {[%emt 0:02:52]} Bxc5 {[%emt 0:02:22]} 12. Rc1 {[%emt 0:01:56]} Qe7 {[%emt 0:06:14]} 13. Nb5 {[%emt 0:04:34]} Ne4 {[%emt 0:05:37]} 14. Nbd4 {[%emt 0:01:51]} Rac8 {[%emt 0:02:46]} 15. Nxc6 {[%emt 0:03:37]} bxc6 {[%emt 0:00:51]} 16. Nd4 {[%emt 0:02:33]} Rfd8 {[%emt 0:03:05]} 17. Qd3 {[%emt 0:01:23]} Bxd4 {[%emt 0:09:23]} 18. Qxd4 {[%emt 0:00:13]} Nf6 {[%emt 0:00:43]} 19. e3 {[%emt 0:00:34]} Bf5 {[%emt 0:03:50]} 20. Rfe1 {[%emt 0:01:36]} a5 {[%emt 0:11:08]} 21. Qa4 {[%emt 0:00:34]} Qb4 {[%emt 0:01:22]} 22. Bc3 {[%emt 0:09:50]} Qxa4 {[%emt 0:02:55]} 23. bxa4 {[%emt 0:00:08]} Rd7 {[%emt 0:00:24]} 24. Bf1 {[%emt 0:01:23]} Ne4 {[%emt 0:02:05]} 25. Bd4 {[%emt 0:00:35]} c5 {[%emt 0:05:02]} 26. Ba6 {[%emt 0:02:13]} Rcc7 {[%emt 0:05:24]} 27. Bb2 {[%emt 0:01:54]} Re7 {[%emt 0:01:08]} 28. Red1 {[%emt 0:00:43]} Be6 {[%emt 0:01:26]} 29. h4 {[%emt 0:04:49]} f6 {[%emt 0:00:27]} 30. Ba3 {[%emt 0:01:28]} Re8 {[%emt 0:03:20]} 31. Bd3 {[%emt 0:04:13]} c4 {[%emt 0:02:46]} 32. Bxe4 {[%emt 0:01:24]} dxe4 {[%emt 0:00:01]} 33. Rc3 {[%emt 0:00:20]} Rb7 {[%emt 0:02:04]} 34. Kg2 {[%emt 0:06:10]} Kf7 {[%emt 0:02:00]} 35. Rd4 {[%emt 0:00:30]} Kg6 {[%emt 0:00:42]} 36. Rd6 {[%emt 0:01:46]} Rb1 {[%emt 0:02:07]} 37. Rc2 {[%emt 0:02:34]} Rbb8 {[%emt 0:02:07]} 38. Bc5 {[%emt 0:03:14]} Rbd8 {[%emt 0:01:24]} 39. Rxd8 {[%emt 0:00:34]} Rxd8 {[%emt 0:10:17]} 40. Bb6 {[%emt 0:00:00]} Ra8 {[%emt 0:00:00]} 41. Bd4 {[%emt 0:04:58]} Rb8 {[%emt 0:00:00]} 42. Bc3 {[%emt 0:01:24]} Bg4 {[%emt 0:00:00]} 43. Rb2 {[%emt 0:00:31]} Rd8 {[%emt 0:00:00]} 44. Rd2 {[%emt 0:00:34]} Rb8 {[%emt 0:00:00]} 1/2-1/2

[Event "Romanian Women Championship 2024"]
[Site "Eforie Nord"]
[Date "2024.02.26"]
[Round "4.9"]
[White "Pirvulescu, Ekaterina"]
[Black "Batagan, Ilinca-Petra"]
[Result "1/2-1/2"]
[ECO "C72"]
[WhiteElo "2091"]
[BlackElo "1859"]
[Annotator "RC"]
[PlyCount "73"]
[EventDate "2024.02.24"]
[EventType "swiss"]
[EventCountry "ROU"]
[SourceTitle "playchess.com"]
[Source "ChessBase"]
[SourceQuality "1"]
[TimeControl "40/5400+30:900+30"]

1. e4 {[%emt 0:00:01]} e5 {[%emt 0:00:16]} 2. Nf3 {[%emt 0:00:09]} Nc6 {[%emt 0:00:22]} 3. Bb5 {[%emt 0:00:10]} a6 {[%emt 0:00:55]} 4. Ba4 {[%emt 0:00:10]} d6 {[%emt 0:00:25]} 5. O-O {[%emt 0:03:01]} Bd7 {[%emt 0:00:56]} 6. c4 {[%emt 0:01:01]} Nf6 {[%emt 0:06:06]} 7. Nc3 {[%emt 0:00:50]} Be7 {[%emt 0:04:34]} 8. d3 {[%emt 0:09:00]} O-O {[%emt 0:01:45]} 9. h3 {[%emt 0:01:58]} h6 {[%emt 0:07:27]} 10. Ne2 {[%emt 0:05:23]} Be6 {[%emt 0:06:05]} 11. Bc2 {[%emt 0:08:24]} Nb4 {[%emt 0:06:58]} 12. a3 {[%emt 0:04:34]} Nxc2 {[%emt 0:01:29]} 13. Qxc2 {[%emt 0:00:04]} b5 {[%emt 0:17:30]} 14. cxb5 {[%emt 0:06:16]} axb5 {[%emt 0:00:24]} 15. d4 {[%emt 0:00:51]} exd4 {[%emt 0:00:20]} 16. Nexd4 {[%emt 0:00:37]} Bd7 {[%emt 0:03:21]} 17. Nc6 {[%emt 0:01:17]} Bxc6 {[%emt 0:02:57]} 18. Qxc6 {[%emt 0:00:05]} Qd7 {[%emt 0:07:02]} 19. Nd4 {[%emt 0:02:16]} Qxc6 {[%emt 0:00:15]} 20. Nxc6 {[%emt 0:00:02]} Rfe8 {[%emt 0:00:48]} 21. f3 {[%emt 0:03:46]} Ra6 {[%emt 0:01:01]} 22. Nb4 {[%emt 0:12:12]} Raa8 {[%emt 0:00:35]} 23. Nc6 {[%emt 0:02:54]} Ra6 {[%emt 0:00:30]} 24. Nxe7+ {[%emt 0:00:37]} Rxe7 {[%emt 0:00:06]} 25. Bd2 {[%emt 0:00:30]} Nd7 {[%emt 0:04:16]} 26. Bc3 {[%emt 0:03:25]} Nc5 {[%emt 0:04:13]} 27. Rfd1 {[%emt 0:06:15]} Na4 {[%emt 0:03:22]} 28. Rac1 {[%emt 0:01:19]} Rc6 {[%emt 0:01:10]} 29. Bd4 {[%emt 0:03:32]} Rxc1 {[%emt 0:00:37]} 30. Rxc1 {[%emt 0:00:01]} c5 {[%emt 0:00:47]} 31. Bc3 {[%emt 0:01:57]} Nxc3 {[%emt 0:00:19]} 32. Rxc3 {[%emt 0:00:05]} Rd7 {[%emt 0:03:28]} 33. Rd3 {[%emt 0:02:34]} Kf8 {[%emt 0:02:06]} 34. Kf2 {[%emt 0:02:18]} Ke7 {[%emt 0:00:21]} 35. f4 {[%emt 0:02:09]} Ke6 {[%emt 0:04:28]} 36. Rd5 {[%emt 0:01:50]} f6 {[%emt 0:03:56]} 37. Kf3 {[%emt 0:04:44]} 1/2-1/2

[Event "Romanian Women Championship 2024"]
[Site "Eforie Nord"]
[Date "2024.02.26"]
[Round "4.10"]
[White "Kiss, Hanna"]
[Black "Iordache, Alexia-Andreea"]
[Result "0-1"]
[ECO "B91"]
[WhiteElo "1446"]
[BlackElo "1769"]
[Annotator "NA RC"]
[PlyCount "118"]
[EventDate "2024.02.24"]
[EventType "swiss"]
[EventCountry "ROU"]
[SourceTitle "playchess.com"]
[Source "ChessBase"]
[SourceQuality "1"]
[TimeControl "40/5400+30:900+30"]

1. e4 {[%emt 0:00:03]} c5 {[%emt 0:00:03]} 2. Nf3 {[%emt 0:00:07]} d6 {[%emt 0:00:02]} 3. d4 {[%emt 0:00:05]} cxd4 {[%emt 0:00:03]} 4. Nxd4 {[%emt 0:00:05]} Nf6 {[%emt 0:00:03]} 5. Nc3 {[%emt 0:00:06]} a6 {[%emt 0:00:01]} 6. g3 {[%emt 0:00:18]} e5 {[%emt 0:00:04]} 7. Nde2 {[%emt 0:00:12]} Be7 {[%emt 0:00:05]} 8. Bg2 {[%emt 0:00:06]} O-O {[%emt 0:00:05]} 9. O-O {[%emt 0:00:23]} b5 {[%emt 0:00:13]} 10. Nd5 {[%emt 0:00:22]} Nbd7 {[%emt 0:00:04]} 11. Nec3 {[%emt 0:04:03]} Bb7 {[%emt 0:00:10]} 12. Be3 {[%emt 0:02:38]} Rc8 {[%emt 0:08:46]} 13. Rc1 {[%emt 0:02:43]} Nxd5 {[%emt 0:10:19]} 14. Nxd5 {[%emt 0:01:46]} Bxd5 {[%emt 0:06:33]} 15. Qxd5 {[%emt 0:02:35]} Qc7 {[%emt 0:01:15]} 16. Rfd1 {[%emt 0:12:04]} Nb6 {[%emt 0:01:20]} 17. Bxb6 {[%emt 0:01:38]} Qxb6 {[%emt 0:00:01]} 18. h4 {[%emt 0:01:03]} Rc5 {[%emt 0:02:11]} 19. Qb3 {[%emt 0:05:00]} Rc4 {[%emt 0:04:42]} 20. Qf3 {[%emt 0:10:41]} Rfc8 {[%emt 0:06:25]} 21. c3 {[%emt 0:01:32]} Qc6 {[%emt 0:07:31]} 22. Re1 {[%emt 0:04:37]} Rc5 {[%emt 0:04:15]} 23. Re3 {[%emt 0:05:39]} a5 {[%emt 0:03:44]} 24. b3 {[%emt 0:05:47]} g6 {[%emt 0:14:13]} 25. a3 {[%emt 0:20:40]} b4 {[%emt 0:06:39]} 26. a4 {[%emt 0:08:28]} Rxc3 {[%emt 0:03:05]} 27. Rexc3 {[%emt 0:00:30]} bxc3 {[%emt 0:00:05]} 28. Bf1 {[%emt 0:00:26]} f5 {[%emt 0:17:41]} 29. Bc4+ {[%emt 0:07:57]} Kh8 {[%emt 0:01:38]} 30. Bd5 {[%emt 0:01:36]} Qd7 {[%emt 0:03:27]} 31. Rxc3 {[%emt 0:01:06]} Rf8 {[%emt 0:00:00]} 32. Qg2 {[%emt 0:01:41]} f4 {[%emt 0:00:09]} 33. Rf3 {[%emt 0:00:27]} Qc7 {[%emt 0:01:05]} 34. Qf1 {[%emt 0:00:30]} Qc8 {[%emt 0:00:25]} 35. Qg2 {[%emt 0:00:32]} Qc1+ {[%emt 0:00:34]} 36. Qf1 {[%emt 0:00:31]} Qc8 {[%emt 0:00:37]} 37. Qg2 {[%emt 0:00:04]} Qc5 {[%emt 0:00:19]} 38. Kh2 {[%emt 0:00:39]} Qc1 {[%emt 0:00:52]} 39. Rd3 {[%emt 0:00:46]} Qc2 {[%emt 0:00:21]} 40. Rf3 {[%emt 0:00:00]} Qe2 {[%emt 0:00:00]} 41. Kh3 {[%emt 0:06:48]} Kg7 {[%emt 0:05:24]} 42. g4 {[%emt 0:06:48]} Rc8 {[%emt 0:05:10]} 43. g5 {[%emt 0:02:02]} Qd1 {[%emt 0:04:21]} 44. Bc4 {[%emt 0:01:02]} Qe1 {[%emt 0:00:33]} 45. Rd3 {[%emt 0:00:46]} Rh8 {[%emt 0:00:58]} 46. Qf3 {[%emt 0:00:45]} h6 {[%emt 0:01:17]} 47. Rd1 {[%emt 0:00:40]} Qb4 {[%emt 0:00:03]} 48. Kg2 {[%emt 0:00:36]} hxg5 {[%emt 0:00:25]} 49. hxg5 {[%emt 0:00:04]} Rh5 {[%emt 0:00:15]} 50. Rh1 {[%emt 0:00:56]} Rxg5+ {[%emt 0:00:11]} 51. Kf1 {[%emt 0:00:08]} Qd2 {[%emt 0:00:26]} 52. Qe2 {[%emt 0:00:55]} Qd4 {[%emt 0:01:16]} 53. Rh3 {[%emt 0:00:30]} Qa1+ {[%emt 0:00:06]} 54. Qe1 {[%emt 0:00:09]} Rg1+ {[%emt 0:00:02]} 55. Kxg1 {[%emt 0:00:19]} Qxe1+ {[%emt 0:00:01]} 56. Kg2 {[%emt 0:00:02]} g5 {[%emt 0:00:24]} 57. Rh1 {[%emt 0:00:36]} f3+ {[%emt 0:00:01]} 58. Kh2 {[%emt 0:00:01]} Qxf2+ {[%emt 0:00:02]} 59. Kh3 {[%emt 0:00:01]} Qg2# {[%emt 0:00:01]} 0-1